[Event "Titled Tuesday Blitz April 05 Early 2022"]
[White "Postnikov, Daniil"]
[Black "Muradov, Soltan"]
[WhiteFideId "4166329"]
[BlackFideId "14002108"]
[WhiteElo "2261"]
[BlackElo "1854"]
[Result "1-0"]
[Round "10"]
[TimeControl "180+1"]
[Date "2022.04.05"]
[WhiteClock "0:01:48"]
[BlackClock "0:01:39"]

1. d4 {[%clk 0:03:00]}  Nf6 {[%clk 0:02:58]} 2. c4 {[%clk 0:03:01]}  e6 {[%clk 0:02:59]} 3. Nf3 {[%clk 0:03:00]}  b6 {[%clk 0:02:59]} 4. g3 {[%clk 0:03:00]}  Bb7 {[%clk 0:02:58]} 5. Bg2 {[%clk 0:03:00]}  d5 {[%clk 0:02:57]} 6. Ne5 {[%clk 0:02:59]}  Nbd7 {[%clk 0:02:54]} 7. Qa4 {[%clk 0:02:45]}  Bd6 {[%clk 0:02:47]} 8. Nc3 {[%clk 0:02:39]}  O-O {[%clk 0:02:46]} 9. Nxd7 {[%clk 0:02:31]}  Nxd7 {[%clk 0:02:44]} 10. cxd5 {[%clk 0:02:31]}  exd5 {[%clk 0:02:31]} 11. Nxd5 {[%clk 0:02:31]}  Kh8 {[%clk 0:02:20]} 12. O-O {[%clk 0:02:26]}  c5 {[%clk 0:02:18]} 13. Rd1 {[%clk 0:02:20]}  cxd4 {[%clk 0:02:13]} 14. Qxd4 {[%clk 0:02:20]}  Be5 {[%clk 0:02:11]} 15. Qb4 {[%clk 0:02:05]}  Nf6 {[%clk 0:01:49]} 16. Bf4 {[%clk 0:01:55]}  Nxd5 {[%clk 0:01:43]} 17. Bxd5 {[%clk 0:01:51]}  Bxf4 {[%clk 0:01:39]} 18. Bxb7 {[%clk 0:01:48]} 1-0


[Site "https://www.chess.com"]

[Event "Titled Tuesday Blitz April 05 Early 2022"]
[White "Prado Lobo, Jonas"]
[Black "Prohorov, Olexandr"]
[WhiteFideId "32050666"]
[BlackFideId "14105578"]
[WhiteElo "2214"]
[BlackElo "1993"]
[Result "0-1"]
[Round "10"]
[TimeControl "180+1"]
[Date "2022.04.05"]
[WhiteClock "0:00:01"]
[BlackClock "0:00:01"]

1. d4 {[%clk 0:03:00]}  g6 {[%clk 0:02:58]} 2. e4 {[%clk 0:02:59]}  Bg7 {[%clk 0:02:58]} 3. Nf3 {[%clk 0:03:00]}  c5 {[%clk 0:02:55]} 4. Bc4 {[%clk 0:03:00]}  cxd4 {[%clk 0:02:54]} 5. O-O {[%clk 0:03:00]}  Nc6 {[%clk 0:02:50]} 6. c3 {[%clk 0:03:00]}  d3 {[%clk 0:02:49]} 7. Qxd3 {[%clk 0:02:57]}  d6 {[%clk 0:02:48]} 8. Qe2 {[%clk 0:02:40]}  Nf6 {[%clk 0:02:46]} 9. Rd1 {[%clk 0:02:40]}  Qc7 {[%clk 0:02:45]} 10. Na3 {[%clk 0:02:33]}  a6 {[%clk 0:02:43]} 11. h3 {[%clk 0:02:26]}  O-O {[%clk 0:02:37]} 12. Bf4 {[%clk 0:02:25]}  b5 {[%clk 0:02:30]} 13. Bb3 {[%clk 0:02:22]}  Ne5 {[%clk 0:02:29]} 14. Nc2 {[%clk 0:02:11]}  Bb7 {[%clk 0:02:25]} 15. Nb4 {[%clk 0:02:01]}  Nxf3+ {[%clk 0:02:19]} 16. gxf3 {[%clk 0:02:00]}  Qd7 {[%clk 0:02:09]} 17. Kh2 {[%clk 0:01:42]}  a5 {[%clk 0:02:08]} 18. Nd5 {[%clk 0:01:34]}  Nxd5 {[%clk 0:02:03]} 19. Bxd5 {[%clk 0:01:35]}  Bxd5 {[%clk 0:01:52]} 20. Rxd5 {[%clk 0:01:36]}  b4 {[%clk 0:01:52]} 21. c4 {[%clk 0:01:35]}  a4 {[%clk 0:01:49]} 22. Rad1 {[%clk 0:01:31]}  Qc6 {[%clk 0:01:39]} 23. b3 {[%clk 0:01:32]}  axb3 {[%clk 0:01:34]} 24. axb3 {[%clk 0:01:32]}  Ra3 {[%clk 0:01:35]} 25. Qe3 {[%clk 0:01:14]}  h5 {[%clk 0:01:25]} 26. Bh6 {[%clk 0:01:12]}  Rc8 {[%clk 0:01:15]} 27. Rg1 {[%clk 0:01:06]}  Bf6 {[%clk 0:01:01]} 28. Bg5 {[%clk 0:00:55]}  Be5+ {[%clk 0:00:51]} 29. f4 {[%clk 0:00:56]}  Bc3 {[%clk 0:00:51]} 30. Bxe7 {[%clk 0:00:23]}  Rxb3 {[%clk 0:00:49]} 31. Rxd6 {[%clk 0:00:17]}  Qxc4 {[%clk 0:00:42]} 32. Qb6 {[%clk 0:00:07]}  Bg7 {[%clk 0:00:32]} 33. Rdxg6 {[%clk 0:00:04]}  fxg6 {[%clk 0:00:20]} 34. Qxg6 {[%clk 0:00:05]}  Qf7 {[%clk 0:00:21]} 35. Qg5 {[%clk 0:00:02]}  Rb2 {[%clk 0:00:14]} 36. Bf6 {[%clk 0:00:01]}  Rxf2+ {[%clk 0:00:08]} 37. Kh1 {[%clk 0:00:02]}  Kf8 {[%clk 0:00:02]} 38. Bxg7+ {[%clk 0:00:02]}  Ke8 {[%clk 0:00:02]} 39. Bf6 {[%clk 0:00:01]}  Qe6 {[%clk 0:00:01]} 40. Qxh5+ {[%clk 0:00:01]}  Kd7 {[%clk 0:00:01]} 0-1


[Site "https://www.chess.com"]

[Event "Titled Tuesday Blitz April 05 Early 2022"]
[White "Roberson, Peter T"]
[Black "Sliwicka, Alicja"]
[WhiteFideId "412384"]
[BlackFideId "1150677"]
[WhiteElo "2346"]
[BlackElo "2120"]
[Result "1-0"]
[Round "10"]
[TimeControl "180+1"]
[Date "2022.04.05"]
[WhiteClock "0:01:30"]
[BlackClock "0:01:15"]

1. e4 {[%clk 0:03:00]}  c5 {[%clk 0:02:59]} 2. Na3 {[%clk 0:03:00]}  e5 {[%clk 0:02:54]} 3. Nf3 {[%clk 0:03:00]}  Nc6 {[%clk 0:02:54]} 4. Bb5 {[%clk 0:03:00]}  d6 {[%clk 0:02:52]} 5. O-O {[%clk 0:03:00]}  g6 {[%clk 0:02:52]} 6. c3 {[%clk 0:02:59]}  a6 {[%clk 0:02:48]} 7. Bxc6+ {[%clk 0:02:58]}  bxc6 {[%clk 0:02:49]} 8. d4 {[%clk 0:02:59]}  cxd4 {[%clk 0:02:43]} 9. cxd4 {[%clk 0:03:00]}  exd4 {[%clk 0:02:40]} 10. Qxd4 {[%clk 0:03:00]}  Qf6 {[%clk 0:02:34]} 11. Nc4 {[%clk 0:02:55]}  Qxd4 {[%clk 0:02:29]} 12. Nxd4 {[%clk 0:02:56]}  Be6 {[%clk 0:02:30]} 13. Nxe6 {[%clk 0:02:47]}  fxe6 {[%clk 0:02:30]} 14. Rd1 {[%clk 0:02:41]}  O-O-O {[%clk 0:02:26]} 15. Be3 {[%clk 0:02:33]}  e5 {[%clk 0:02:13]} 16. Na5 {[%clk 0:02:26]}  c5 {[%clk 0:01:36]} 17. b4 {[%clk 0:02:24]}  cxb4 {[%clk 0:01:27]} 18. Rab1 {[%clk 0:02:22]}  Bh6 {[%clk 0:01:21]} 19. Bxh6 {[%clk 0:01:59]}  Nxh6 {[%clk 0:01:22]} 20. Rxb4 {[%clk 0:01:58]}  Kd7 {[%clk 0:01:20]} 21. Rb6 {[%clk 0:01:38]}  Ke7 {[%clk 0:01:18]} 22. Nc6+ {[%clk 0:01:37]}  Ke6 {[%clk 0:01:16]} 23. Nxd8+ {[%clk 0:01:37]}  Rxd8 {[%clk 0:01:17]} 24. Rxa6 {[%clk 0:01:37]}  Nf7 {[%clk 0:01:17]} 25. f3 {[%clk 0:01:34]}  Rb8 {[%clk 0:01:16]} 26. Rd2 {[%clk 0:01:33]}  Rb7 {[%clk 0:01:15]} 27. a4 {[%clk 0:01:33]}  Kd7 {[%clk 0:01:15]} 28. a5 {[%clk 0:01:32]}  Kc7 {[%clk 0:01:16]} 29. Rc2+ {[%clk 0:01:31]}  Kb8 {[%clk 0:01:16]} 30. Rb6 {[%clk 0:01:30]}  Rxb6 {[%clk 0:01:16]} 31. axb6 {[%clk 0:01:30]}  Nd8 {[%clk 0:01:15]} 32. Rc7 {[%clk 0:01:30]} 1-0


[Site "https://www.chess.com"]

[Event "Titled Tuesday Blitz April 05 Early 2022"]
[White "Saim, Mohamed Ilias"]
[Black "Silvestre, Christian"]
[WhiteFideId "7900465"]
[BlackFideId "30956269"]
[WhiteElo "2006"]
[BlackElo "2401"]
[Result "0-1"]
[Round "10"]
[TimeControl "180+1"]
[Date "2022.04.05"]
[WhiteClock "0:00:03"]
[BlackClock "0:00:51"]

1. d4 {[%clk 0:03:00]}  Nf6 {[%clk 0:02:53]} 2. Nf3 {[%clk 0:03:00]}  d6 {[%clk 0:02:51]} 3. e3 {[%clk 0:02:56]}  Nbd7 {[%clk 0:02:46]} 4. c4 {[%clk 0:02:54]}  e5 {[%clk 0:02:45]} 5. Be2 {[%clk 0:02:51]}  Be7 {[%clk 0:02:44]} 6. O-O {[%clk 0:02:51]}  O-O {[%clk 0:02:44]} 7. Nc3 {[%clk 0:02:50]}  c6 {[%clk 0:02:44]} 8. b4 {[%clk 0:02:49]}  Re8 {[%clk 0:02:43]} 9. a4 {[%clk 0:02:48]}  Bf8 {[%clk 0:02:42]} 10. b5 {[%clk 0:02:45]}  e4 {[%clk 0:02:41]} 11. Nd2 {[%clk 0:02:44]}  d5 {[%clk 0:02:41]} 12. a5 {[%clk 0:02:40]}  a6 {[%clk 0:02:37]} 13. cxd5 {[%clk 0:02:24]}  cxd5 {[%clk 0:02:34]} 14. Qb3 {[%clk 0:02:12]}  Nb8 {[%clk 0:02:28]} 15. Ba3 {[%clk 0:02:04]}  Bxa3 {[%clk 0:02:25]} 16. Rxa3 {[%clk 0:02:03]}  h5 {[%clk 0:02:22]} 17. Rc1 {[%clk 0:01:52]}  h4 {[%clk 0:02:21]} 18. h3 {[%clk 0:01:49]}  g5 {[%clk 0:02:21]} 19. Na4 {[%clk 0:01:46]}  g4 {[%clk 0:02:20]} 20. Nb6 {[%clk 0:01:32]}  Be6 {[%clk 0:02:17]} 21. Nxa8 {[%clk 0:01:22]}  gxh3 {[%clk 0:02:16]} 22. Nb6 {[%clk 0:01:13]}  Kh7 {[%clk 0:02:12]} 23. bxa6 {[%clk 0:01:09]}  bxa6 {[%clk 0:02:11]} 24. Qd1 {[%clk 0:00:32]}  Rg8 {[%clk 0:02:09]} 25. g3 {[%clk 0:00:17]}  hxg3 {[%clk 0:02:07]} 26. fxg3 {[%clk 0:00:17]}  Rxg3+ {[%clk 0:02:06]} 27. Kh1 {[%clk 0:00:17]}  Qd6 {[%clk 0:02:02]} 28. Nf1 {[%clk 0:00:16]}  Rg2 {[%clk 0:01:59]} 29. Rac3 {[%clk 0:00:09]}  Ng4 {[%clk 0:01:59]} 30. Bxg4 {[%clk 0:00:09]}  Bxg4 {[%clk 0:01:57]} 31. Qe1 {[%clk 0:00:08]}  Bf3 {[%clk 0:01:53]} 32. Qh4+ {[%clk 0:00:08]}  Kg7 {[%clk 0:01:53]} 33. Qf4 {[%clk 0:00:03]}  Rg4+ {[%clk 0:01:50]} 34. Kh2 {[%clk 0:00:03]}  Rxf4 {[%clk 0:01:49]} 35. exf4 {[%clk 0:00:02]}  Qxf4+ {[%clk 0:01:34]} 36. Kxh3 {[%clk 0:00:03]}  Qh4+ {[%clk 0:00:51]} 0-1


[Site "https://www.chess.com"]

[Event "Titled Tuesday Blitz April 05 Early 2022"]
[White "Skliarov, Viktor"]
[Black "Shukhman, Anna"]
[WhiteFideId "14106736"]
[BlackFideId "54180058"]
[WhiteElo "2229"]
[BlackElo "1665"]
[Result "1-0"]
[Round "10"]
[TimeControl "180+1"]
[Date "2022.04.05"]
[WhiteClock "0:00:31"]
[BlackClock "0:01:38"]

1. e4 {[%clk 0:03:00]}  c5 {[%clk 0:02:59]} 2. Nf3 {[%clk 0:03:00]}  e6 {[%clk 0:02:58]} 3. c3 {[%clk 0:03:00]}  Nf6 {[%clk 0:02:57]} 4. Bd3 {[%clk 0:03:00]}  d5 {[%clk 0:02:56]} 5. e5 {[%clk 0:03:00]}  Nfd7 {[%clk 0:02:56]} 6. Bc2 {[%clk 0:03:00]}  Nc6 {[%clk 0:02:56]} 7. d4 {[%clk 0:03:00]}  Qb6 {[%clk 0:02:55]} 8. a3 {[%clk 0:02:58]}  c4 {[%clk 0:02:49]} 9. O-O {[%clk 0:02:54]}  Na5 {[%clk 0:02:49]} 10. Ng5 {[%clk 0:02:30]}  Be7 {[%clk 0:02:33]} 11. Qh5 {[%clk 0:02:00]}  g6 {[%clk 0:02:32]} 12. Qh6 {[%clk 0:01:54]}  Bf8 {[%clk 0:02:29]} 13. Qh3 {[%clk 0:01:51]}  h6 {[%clk 0:02:16]} 14. Nd2 {[%clk 0:01:29]}  Be7 {[%clk 0:02:03]} 15. Ndf3 {[%clk 0:01:16]}  Nf8 {[%clk 0:02:03]} 16. Rb1 {[%clk 0:01:05]}  Bd7 {[%clk 0:02:01]} 17. Be3 {[%clk 0:00:56]}  O-O-O {[%clk 0:01:59]} 18. Nxf7 {[%clk 0:00:56]}  Nh7 {[%clk 0:01:54]} 19. Nxh8 {[%clk 0:00:53]}  Rxh8 {[%clk 0:01:53]} 20. Qxh6 {[%clk 0:00:52]}  Qd8 {[%clk 0:01:48]} 21. Qf4 {[%clk 0:00:41]}  g5 {[%clk 0:01:46]} 22. Qg4 {[%clk 0:00:38]}  Nf8 {[%clk 0:01:44]} 23. Bxg5 {[%clk 0:00:34]}  Bxg5 {[%clk 0:01:41]} 24. Qxg5 {[%clk 0:00:34]}  Qb6 {[%clk 0:01:38]} 25. Qg7 {[%clk 0:00:31]} 1-0


[Site "https://www.chess.com"]

[Event "Titled Tuesday Blitz April 05 Early 2022"]
[White "Terletsky, Oleg"]
[Black "Noboa Silva, Kevin"]
[WhiteFideId "14116774"]
[BlackFideId "3618471"]
[WhiteElo "2064"]
[BlackElo "2172"]
[Result "0-1"]
[Round "10"]
[TimeControl "180+1"]
[Date "2022.04.05"]
[WhiteClock "0:01:06"]
[BlackClock "0:01:16"]

1. e4 {[%clk 0:03:00]}  e6 {[%clk 0:02:59]} 2. d4 {[%clk 0:03:00]}  d5 {[%clk 0:02:59]} 3. Nd2 {[%clk 0:03:00]}  a6 {[%clk 0:02:57]} 4. Bd3 {[%clk 0:02:49]}  c5 {[%clk 0:02:56]} 5. dxc5 {[%clk 0:02:44]}  Bxc5 {[%clk 0:02:55]} 6. Ngf3 {[%clk 0:02:42]}  Nf6 {[%clk 0:02:55]} 7. Qe2 {[%clk 0:02:34]}  Nc6 {[%clk 0:02:53]} 8. c3 {[%clk 0:02:34]}  O-O {[%clk 0:02:38]} 9. O-O {[%clk 0:02:30]}  Re8 {[%clk 0:02:27]} 10. Rd1 {[%clk 0:02:27]}  Bd7 {[%clk 0:02:21]} 11. b4 {[%clk 0:02:18]}  Bb6 {[%clk 0:02:15]} 12. a3 {[%clk 0:02:17]}  Ng4 {[%clk 0:02:11]} 13. Bb2 {[%clk 0:02:07]}  Nxf2 {[%clk 0:02:09]} 14. Qxf2 {[%clk 0:01:51]}  Bxf2+ {[%clk 0:02:07]} 15. Kxf2 {[%clk 0:01:52]}  Qf6 {[%clk 0:01:49]} 16. Rab1 {[%clk 0:01:47]}  Ne5 {[%clk 0:01:48]} 17. Be2 {[%clk 0:01:42]}  Ng4+ {[%clk 0:01:46]} 18. Kg1 {[%clk 0:01:42]}  Qh6 {[%clk 0:01:39]} 19. Nf1 {[%clk 0:01:36]}  dxe4 {[%clk 0:01:37]} 20. Rxd7 {[%clk 0:01:35]}  exf3 {[%clk 0:01:36]} 21. Bxf3 {[%clk 0:01:35]}  Ne5 {[%clk 0:01:36]} 22. Rxb7 {[%clk 0:01:31]}  Nxf3+ {[%clk 0:01:36]} 23. gxf3 {[%clk 0:01:32]}  Rad8 {[%clk 0:01:34]} 24. c4 {[%clk 0:01:29]}  Rd3 {[%clk 0:01:30]} 25. c5 {[%clk 0:01:20]}  Rxf3 {[%clk 0:01:21]} 26. Rd1 {[%clk 0:01:07]}  Qg6+ {[%clk 0:01:15]} 27. Ng3 {[%clk 0:01:05]}  Rxg3+ {[%clk 0:01:14]} 28. hxg3 {[%clk 0:01:05]}  Qxg3+ {[%clk 0:01:15]} 29. Kf1 {[%clk 0:01:05]}  Qf3+ {[%clk 0:01:16]} 30. Ke1 {[%clk 0:01:06]}  Qxb7 {[%clk 0:01:16]} 0-1


[Site "https://www.chess.com"]

[Event "Titled Tuesday Blitz April 05 Early 2022"]
[White "Tsyhanchuk, Stanislav"]
[Black "Gracia Alvarez, Gerardo Antonio"]
[WhiteFideId "13505130"]
[BlackFideId "5109124"]
[WhiteElo "2078"]
[BlackElo "2139"]
[Result "0-1"]
[Round "10"]
[TimeControl "180+1"]
[Date "2022.04.05"]
[WhiteClock "0:00:14"]
[BlackClock "0:00:06"]

1. d4 {[%clk 0:02:56]}  d5 {[%clk 0:02:59]} 2. c4 {[%clk 0:02:56]}  e6 {[%clk 0:02:59]} 3. Nc3 {[%clk 0:02:56]}  a6 {[%clk 0:03:00]} 4. cxd5 {[%clk 0:02:54]}  exd5 {[%clk 0:03:01]} 5. Nf3 {[%clk 0:02:53]}  c6 {[%clk 0:03:01]} 6. Bf4 {[%clk 0:02:52]}  Bd6 {[%clk 0:03:00]} 7. Bg5 {[%clk 0:02:46]}  Be7 {[%clk 0:02:57]} 8. h4 {[%clk 0:02:41]}  Bf5 {[%clk 0:02:46]} 9. e3 {[%clk 0:02:39]}  Nf6 {[%clk 0:02:40]} 10. Bd3 {[%clk 0:02:38]}  Bxd3 {[%clk 0:02:39]} 11. Qxd3 {[%clk 0:02:38]}  Nbd7 {[%clk 0:02:37]} 12. h5 {[%clk 0:02:38]}  h6 {[%clk 0:02:36]} 13. Bf4 {[%clk 0:02:34]}  Bb4 {[%clk 0:02:12]} 14. Ne5 {[%clk 0:02:30]}  Nxe5 {[%clk 0:02:04]} 15. dxe5 {[%clk 0:02:15]}  Ne4 {[%clk 0:02:03]} 16. f3 {[%clk 0:02:14]}  Nxc3 {[%clk 0:02:00]} 17. bxc3 {[%clk 0:02:14]}  Be7 {[%clk 0:01:53]} 18. O-O {[%clk 0:02:10]}  O-O {[%clk 0:01:52]} 19. c4 {[%clk 0:02:03]}  dxc4 {[%clk 0:01:46]} 20. Qxc4 {[%clk 0:02:04]}  Qc8 {[%clk 0:01:35]} 21. Rab1 {[%clk 0:02:01]}  b5 {[%clk 0:01:33]} 22. Qe4 {[%clk 0:02:01]}  Qe6 {[%clk 0:01:30]} 23. Rfc1 {[%clk 0:01:54]}  c5 {[%clk 0:01:25]} 24. Bg3 {[%clk 0:01:48]}  Rab8 {[%clk 0:01:16]} 25. f4 {[%clk 0:01:45]}  f5 {[%clk 0:01:15]} 26. Qf3 {[%clk 0:01:40]}  Rfd8 {[%clk 0:00:59]} 27. Bf2 {[%clk 0:01:37]}  Rd2 {[%clk 0:00:53]} 28. a4 {[%clk 0:01:33]}  b4 {[%clk 0:00:50]} 29. e4 {[%clk 0:01:32]}  c4 {[%clk 0:00:29]} 30. exf5 {[%clk 0:01:20]}  Qxf5 {[%clk 0:00:29]} 31. g4 {[%clk 0:00:57]}  Qd3 {[%clk 0:00:18]} 32. Qxd3 {[%clk 0:00:55]}  cxd3 {[%clk 0:00:19]} 33. a5 {[%clk 0:00:31]}  b3 {[%clk 0:00:18]} 34. Bb6 {[%clk 0:00:31]}  b2 {[%clk 0:00:17]} 35. Rd1 {[%clk 0:00:28]}  Rxd1+ {[%clk 0:00:14]} 36. Rxd1 {[%clk 0:00:29]}  Rc8 {[%clk 0:00:15]} 37. Be3 {[%clk 0:00:24]}  Bc5 {[%clk 0:00:13]} 38. Kf2 {[%clk 0:00:17]}  Bxe3+ {[%clk 0:00:13]} 39. Kxe3 {[%clk 0:00:18]}  Rc1 {[%clk 0:00:12]} 40. Rxd3 {[%clk 0:00:16]}  b1=Q {[%clk 0:00:13]} 41. Rd8+ {[%clk 0:00:17]}  Kf7 {[%clk 0:00:12]} 42. f5 {[%clk 0:00:18]}  Qb3+ {[%clk 0:00:08]} 43. Ke4 {[%clk 0:00:15]}  Rc4+ {[%clk 0:00:05]} 44. Kd5 {[%clk 0:00:14]}  Qd3# {[%clk 0:00:06]} 0-1


[Site "https://www.chess.com"]

[Event "Titled Tuesday Blitz April 05 Early 2022"]
[White "Van den Dikkenberg, Erik"]
[Black "Pacheco Lugo, Alejandro Jose"]
[WhiteFideId "1005880"]
[BlackFideId "3903745"]
[WhiteElo "2118"]
[BlackElo "2146"]
[Result "0-1"]
[Round "10"]
[TimeControl "180+1"]
[Date "2022.04.05"]
[WhiteClock "0:01:02"]
[BlackClock "0:00:51"]

1. e4 {[%clk 0:03:00]}  c5 {[%clk 0:02:59]} 2. Nc3 {[%clk 0:03:00]}  d6 {[%clk 0:02:59]} 3. f4 {[%clk 0:03:00]}  Nc6 {[%clk 0:02:59]} 4. Nf3 {[%clk 0:03:01]}  g6 {[%clk 0:02:59]} 5. Bb5 {[%clk 0:03:00]}  Bd7 {[%clk 0:02:59]} 6. Bxc6 {[%clk 0:02:59]}  Bxc6 {[%clk 0:02:59]} 7. O-O {[%clk 0:03:00]}  Bg7 {[%clk 0:02:59]} 8. d3 {[%clk 0:03:00]}  e6 {[%clk 0:02:55]} 9. Qe1 {[%clk 0:03:00]}  Ne7 {[%clk 0:02:55]} 10. Qg3 {[%clk 0:03:00]}  O-O {[%clk 0:02:49]} 11. Bd2 {[%clk 0:02:59]}  b5 {[%clk 0:02:48]} 12. Rae1 {[%clk 0:02:59]}  b4 {[%clk 0:02:47]} 13. Nd1 {[%clk 0:02:59]}  f5 {[%clk 0:02:37]} 14. Ng5 {[%clk 0:02:58]}  Qd7 {[%clk 0:02:31]} 15. exf5 {[%clk 0:02:55]}  Nxf5 {[%clk 0:02:31]} 16. Qh3 {[%clk 0:02:55]}  Bd4+ {[%clk 0:02:26]} 17. Kh1 {[%clk 0:02:52]}  Rae8 {[%clk 0:02:26]} 18. c3 {[%clk 0:02:49]}  bxc3 {[%clk 0:02:24]} 19. Bxc3 {[%clk 0:02:49]}  h6 {[%clk 0:02:10]} 20. Nf3 {[%clk 0:02:45]}  Bg7 {[%clk 0:02:08]} 21. Bxg7 {[%clk 0:02:43]}  Qxg7 {[%clk 0:02:06]} 22. Nc3 {[%clk 0:02:42]}  Re7 {[%clk 0:01:39]} 23. Re2 {[%clk 0:02:16]}  Rb8 {[%clk 0:01:35]} 24. Rfe1 {[%clk 0:02:14]}  Bxf3 {[%clk 0:01:29]} 25. gxf3 {[%clk 0:02:06]}  Nd4 {[%clk 0:01:27]} 26. Rxe6 {[%clk 0:01:49]}  Rxe6 {[%clk 0:01:25]} 27. Rxe6 {[%clk 0:01:48]}  Nxe6 {[%clk 0:01:26]} 28. Qxe6+ {[%clk 0:01:48]}  Kh7 {[%clk 0:01:25]} 29. Nd5 {[%clk 0:01:47]}  Rf8 {[%clk 0:01:08]} 30. Qxd6 {[%clk 0:01:45]}  Rf5 {[%clk 0:00:59]} 31. Ne7 {[%clk 0:01:36]}  Rf6 {[%clk 0:00:58]} 32. Qxc5 {[%clk 0:01:32]}  Rxf4 {[%clk 0:00:58]} 33. Kg2 {[%clk 0:01:15]}  Qxb2+ {[%clk 0:00:58]} 34. Kg3 {[%clk 0:01:15]}  Qf6 {[%clk 0:00:56]} 35. Qc7 {[%clk 0:01:09]}  Rxf3+ {[%clk 0:00:56]} 36. Kg2 {[%clk 0:01:08]}  Rf2+ {[%clk 0:00:56]} 37. Kg3 {[%clk 0:01:03]}  Qf3+ {[%clk 0:00:53]} 38. Kh4 {[%clk 0:01:02]}  g5# {[%clk 0:00:51]} 0-1


[Site "https://www.chess.com"]

[Event "Titled Tuesday Blitz April 05 Early 2022"]
[White "nobodyperfect13"]
[Black "Stanisz, Patryk"]
[BlackFideId "1123106"]
[WhiteElo "1950"]
[BlackElo "1833"]
[Result "0-1"]
[Round "10"]
[TimeControl "180+1"]
[Date "2022.04.05"]
[WhiteClock "0:01:49"]
[BlackClock "0:00:50"]

1. c4 {[%clk 0:03:00]}  b6 {[%clk 0:03:00]} 2. Nf3 {[%clk 0:02:59]}  Ba6 {[%clk 0:03:01]} 3. g3 {[%clk 0:03:00]}  g6 {[%clk 0:03:00]} 4. d3 {[%clk 0:02:57]}  Bg7 {[%clk 0:02:59]} 5. Bg2 {[%clk 0:02:57]}  c6 {[%clk 0:02:58]} 6. O-O {[%clk 0:02:58]}  e6 {[%clk 0:02:57]} 7. Nc3 {[%clk 0:02:58]}  Ne7 {[%clk 0:02:58]} 8. b4 {[%clk 0:02:56]}  Bxc3 {[%clk 0:02:53]} 9. Rb1 {[%clk 0:02:51]}  O-O {[%clk 0:02:50]} 10. a4 {[%clk 0:02:51]}  d5 {[%clk 0:02:48]} 11. b5 {[%clk 0:02:51]}  Bb7 {[%clk 0:02:46]} 12. Bh6 {[%clk 0:02:50]}  Bg7 {[%clk 0:02:45]} 13. Bxg7 {[%clk 0:02:50]}  Kxg7 {[%clk 0:02:46]} 14. Qd2 {[%clk 0:02:50]}  c5 {[%clk 0:02:45]} 15. h4 {[%clk 0:02:47]}  dxc4 {[%clk 0:02:43]} 16. Qc3+ {[%clk 0:02:46]}  f6 {[%clk 0:02:37]} 17. dxc4 {[%clk 0:02:45]}  e5 {[%clk 0:02:09]} 18. Ng5 {[%clk 0:02:42]}  Qc8 {[%clk 0:01:52]} 19. Bxb7 {[%clk 0:02:41]}  Qxb7 {[%clk 0:01:52]} 20. Ne6+ {[%clk 0:02:40]}  Kf7 {[%clk 0:01:52]} 21. Nxf8 {[%clk 0:02:40]}  Kxf8 {[%clk 0:01:53]} 22. Rfd1 {[%clk 0:02:40]}  Kf7 {[%clk 0:01:25]} 23. Rd6 {[%clk 0:02:39]}  Nd7 {[%clk 0:01:22]} 24. Rbd1 {[%clk 0:02:38]}  Nf8 {[%clk 0:01:22]} 25. Qe3 {[%clk 0:02:33]}  Nf5 {[%clk 0:01:15]} 26. Qd2 {[%clk 0:02:06]}  Nxd6 {[%clk 0:01:14]} 27. Qxd6 {[%clk 0:02:06]}  Re8 {[%clk 0:01:14]} 28. a5 {[%clk 0:02:04]}  Re7 {[%clk 0:01:05]} 29. Ra1 {[%clk 0:01:57]}  Rd7 {[%clk 0:01:01]} 30. Qc6 {[%clk 0:01:58]}  Qxc6 {[%clk 0:01:00]} 31. bxc6 {[%clk 0:01:58]}  Rc7 {[%clk 0:01:01]} 32. axb6 {[%clk 0:01:59]}  axb6 {[%clk 0:01:02]} 33. Ra8 {[%clk 0:01:55]}  Rxc6 {[%clk 0:01:01]} 34. Rb8 {[%clk 0:01:55]}  h5 {[%clk 0:00:57]} 35. e4 {[%clk 0:01:54]}  Ne6 {[%clk 0:00:56]} 36. Rb7+ {[%clk 0:01:53]}  Ke8 {[%clk 0:00:53]} 37. Kg2 {[%clk 0:01:53]}  Rd6 {[%clk 0:00:52]} 38. Rb8+ {[%clk 0:01:50]}  Kd7 {[%clk 0:00:50]} 39. Rb7+ {[%clk 0:01:51]}  Kc6 {[%clk 0:00:50]} 40. Rf7 {[%clk 0:01:51]}  Nd4 {[%clk 0:00:50]} 41. Rg7 {[%clk 0:01:50]}  f5 {[%clk 0:00:49]} 42. exf5 {[%clk 0:01:49]}  Nxf5 {[%clk 0:00:50]} 0-1


[Site "https://www.chess.com"]

[Event "Titled Tuesday Blitz April 05 Early 2022"]
[White "Ambartsumova, Karina"]
[Black "Bettalli, Francesco"]
[WhiteFideId "4166299"]
[BlackFideId "2816453"]
[WhiteElo "2262"]
[BlackElo "2216"]
[Result "1-0"]
[Round "11"]
[TimeControl "180+1"]
[Date "2022.04.05"]
[WhiteClock "0:01:29"]
[BlackClock "0:02:07"]

1. c4 {[%clk 0:03:00]}  c5 {[%clk 0:02:59]} 2. Nf3 {[%clk 0:02:58]}  g6 {[%clk 0:02:59]} 3. d4 {[%clk 0:02:56]}  cxd4 {[%clk 0:03:00]} 4. Nxd4 {[%clk 0:02:57]}  Nc6 {[%clk 0:02:59]} 5. e4 {[%clk 0:02:53]}  Nf6 {[%clk 0:02:55]} 6. Nc3 {[%clk 0:02:53]}  d6 {[%clk 0:02:50]} 7. Be2 {[%clk 0:02:52]}  Nxd4 {[%clk 0:02:45]} 8. Qxd4 {[%clk 0:02:52]}  Bg7 {[%clk 0:02:46]} 9. O-O {[%clk 0:02:51]}  O-O {[%clk 0:02:46]} 10. Qd1 {[%clk 0:02:47]}  a5 {[%clk 0:02:46]} 11. Be3 {[%clk 0:02:46]}  a4 {[%clk 0:02:45]} 12. a3 {[%clk 0:02:40]}  Qa5 {[%clk 0:02:45]} 13. f4 {[%clk 0:02:39]}  Nd7 {[%clk 0:02:43]} 14. Nd5 {[%clk 0:02:15]}  e6 {[%clk 0:02:41]} 15. Ne7+ {[%clk 0:02:12]}  Kh8 {[%clk 0:02:41]} 16. Qxd6 {[%clk 0:02:13]}  Rd8 {[%clk 0:02:34]} 17. Rad1 {[%clk 0:01:59]}  Bf8 {[%clk 0:02:15]} 18. Bb6 {[%clk 0:01:47]}  Qxb6+ {[%clk 0:02:10]} 19. Qxb6 {[%clk 0:01:47]}  Nxb6 {[%clk 0:02:11]} 20. Rxd8 {[%clk 0:01:47]}  Kg7 {[%clk 0:02:10]} 21. Nxc8 {[%clk 0:01:43]}  Rxc8 {[%clk 0:02:10]} 22. Rxc8 {[%clk 0:01:43]}  Nxc8 {[%clk 0:02:11]} 23. Rd1 {[%clk 0:01:41]}  Bc5+ {[%clk 0:02:11]} 24. Kf1 {[%clk 0:01:41]}  Nd6 {[%clk 0:02:11]} 25. Bd3 {[%clk 0:01:39]}  b6 {[%clk 0:02:11]} 26. Ke2 {[%clk 0:01:37]}  Nb7 {[%clk 0:02:11]} 27. Bc2 {[%clk 0:01:36]}  Na5 {[%clk 0:02:10]} 28. Kd3 {[%clk 0:01:31]}  Nc6 {[%clk 0:02:07]} 29. Bxa4 {[%clk 0:01:29]}  Nd4 {[%clk 0:02:07]} 30. b4 {[%clk 0:01:29]} 1-0


[Site "https://www.chess.com"]